bitfinex/quotes_SOLUSD_20251124
["timestamp","ask_amount","ask_price","bid_price","bid_amount"]
[1763980804305,18.12096,129.31,129.27,4.31047371]
[1763980804487,4.31047371,129.3,129.28,3.42]
[1763980804879,4.31047371,129.29,129.28,3.42]
[1763980805410,4.31047371,129.3,129.28,3.42]
[1763980805766,22.43143371,129.31,129.28,3.42]
[1763980806300,0.16339171,129.29,129.28,3.42]
[1763980807480,0.16339171,129.29,129.28,7.73047371]
[1763980807794,0.16339171,129.29,129.28,3.42]
[1763980808295,0.16339171,129.29,129.28,7.73047371]
[1763980808778,0.16339171,129.29,129.28,3.42]
[1763980809272,0.16339171,129.29,129.27,3.42]
[1763980810083,0.16339171,129.29,129.28,4.31047371]
[1763980811489,0.16339171,129.29,129.28,12.18778379]
[1763980811799,0.16339171,129.29,129.28,26.28708519]
[1763980812093,0.16339171,129.29,129.28,25.07582505]
[1763980812296,0.16339171,129.29,129.28,7.55184885]
[1763980812491,0.16339171,129.29,129.28,4.45263528]
[1763980813979,0.16339171,129.29,129.28,4.31047371]
[1763980816409,0.16339171,129.29,129.28,21.97661148]
[1763980820892,0.16339171,129.29,129.28,25.0760652]
[1763980821606,0.16339171,129.29,129.28,48.3660652]
[1763980822595,0.16339171,129.29,129.28,46.81667921]
[1763980823419,0.16339171,129.29,129.28,13.03044298]
[1763980823739,0.16339171,129.29,129.28,6.18108772]
[1763980825504,2.76108772,129.32,129.28,6.18108772]
[1763980826217,0.16015269,129.29,129.28,6.18108772]
[1763980826919,0.16015269,129.29,129.28,14.0583978]
[1763980827313,0.16015269,129.29,129.28,6.32324929]
[1763980830412,0.16015269,129.29,129.28,3.42]
[1763980832001,0.16015269,129.29,129.28,6.18108772]
[1763980832204,0.16015269,129.29,129.28,3.42]
[1763980833013,0.16015269,129.29,129.28,6.18108772]
[1763980835117,0.16015269,129.29,129.28,3.42]
[1763980836214,0.16015269,129.29,129.28,6.18108772]
[1763980837147,0.16015269,129.29,129.24,3.10041468]
[1763980837443,0.16015269,129.29,129.25,6.18108772]
[1763980837603,0.16015269,129.29,129.25,3.42]
[1763980837809,0.16015269,129.29,129.25,6.18108772]
[1763980839017,0.16015269,129.29,129.26,2.76108772]
[1763980840016,0.16015269,129.29,129.27,2.76108772]
[1763980840221,0.16015269,129.29,129.28,3.42]
[1763980841129,0.16015269,129.29,129.26,2.76108772]
[1763980841636,0.16015269,129.29,129.27,3.42]
[1763980842519,0.16015269,129.29,129.27,6.18108772]
[1763980843738,0.16015269,129.29,129.27,3.42]
[1763980845535,2.76108772,129.31,129.28,3.42]
[1763980846322,0.14583233,129.29,129.28,3.42]
[1763980865459,18.12096,129.34,129.28,6.18108772]
[1763980865674,18.12096,129.34,129.29,2.76108772]
[1763980866352,0.16501733,129.3,129.29,2.76108772]
[1763980869157,0.16501733,129.3,129.29,10.63779952]
[1763980869571,0.16501733,129.3,129.29,23.52632111]
[1763980870683,0.16980005,129.31,129.3,33.22098926]
[1763980870859,0.16980005,129.31,129.3,47.02642786]
[1763980871190,0.16980005,129.31,129.3,23.73642786]
[1763980871986,0.16980005,129.31,129.3,31.4703799]
[1763980872967,0.16980005,129.31,129.3,20.42602902]
[1763980873166,0.16980005,129.31,129.3,23.84602902]
[1763980875973,0.16980005,129.31,129.3,16.11207698]
[1763980876180,0.16980005,129.31,129.3,5.86030129]
[1763980876488,0.16980005,129.31,129.3,6.51921357]
[1763980876779,2.93088777,129.31,129.3,6.51921357]
[1763980876987,0.16980005,129.31,129.3,3.42]
[1763980877757,2.93088777,129.31,129.3,3.42]
[1763980879188,0.16980005,129.31,129.3,3.42]
[1763980881163,2.93088777,129.31,129.3,3.42]
[1763980881481,2.93088777,129.31,129.29,3.42]
[1763980884569,4.48685055,129.31,129.29,3.42]
[1763980885476,4.3170505,129.31,129.29,3.42]
[1763980886370,0.14063251,129.3,129.29,3.42]
[1763980892698,0.14063251,129.3,129.29,7.7370505]
[1763980894698,0.14063251,129.3,129.29,25.8580105]
[1763980899902,0.14063251,129.3,129.29,7.7370505]
[1763980901102,0.14063251,129.3,129.29,3.42]
[1763980903501,0.14063251,129.3,129.29,7.7370505]
[1763980904684,0.14063251,129.3,129.28,4.3170505]
[1763980905003,0.14063251,129.3,129.29,3.42]
[1763980905514,4.3170505,129.32,129.29,3.42]
[1763980906377,0.16256002,129.3,129.29,3.42]
[1763980907901,0.16256002,129.3,129.29,7.7370505]
[1763980913480,0.16256002,129.3,129.29,3.42]
[1763980913711,0.16256002,129.3,129.27,18.12096]
[1763980914008,0.16256002,129.3,129.24,37.17201606]
[1763980914009,0.16256002,129.3,129.28,3.42]
[1763980916088,0.16256002,129.3,129.28,7.7370505]
[1763980916288,0.16256002,129.3,129.29,4.3170505]
[1763980916810,0.16256002,129.3,129.28,3.42]
[1763980918218,0.16256002,129.3,129.29,4.3170505]
[1763980919003,0.16256002,129.3,129.28,7.7370505]
[1763980919822,0.16256002,129.3,129.28,4.3170505]
[1763980920018,0.16256002,129.3,129.29,3.42]
[1763980920623,0.16256002,129.3,129.29,7.7370505]
[1763980921121,0.14281156,129.31,129.29,7.7370505]
[1763980921308,0.14281156,129.31,129.3,4.3170505]
[1763980924723,0.14281156,129.31,129.3,4.45921207]
[1763980925827,0.14281156,129.31,129.3,12.19316411]
[1763980926523,0.3020052,129.31,129.3,7.55866579]
[1763980926736,0.3020052,129.31,129.3,15.29261783]
[1763980928005,0.15919364,129.31,129.3,15.29261783]
[1763980928615,0.15919364,129.31,129.3,29.39849602]
[1763980929025,0.15919364,129.31,129.3,29.82034174]
[1763980929416,0.15919364,129.31,129.3,29.39849602]
[1763980929733,1e-08,129.32,129.31,9.93098926]
[1763980930032,0.14254418,129.35,129.34,9.93098926]
[1763980930208,0.1,129.42,129.39,18.12096]
[1763980930405,0.1,129.42,129.39,21.54096]
[1763980931408,4.4170505,129.42,129.39,21.54096]
[1763980931930,0.1,129.42,129.39,21.54096]
[1763980932117,0.1,129.42,129.39,25.8580105]
[1763980932506,0.1,129.42,129.39,21.54096]
[1763980932708,0.1,129.42,129.39,35.78899976]
[1763980933415,0.1,129.42,129.4,0.14216157]
[1763980933615,0.1,129.42,129.41,21.98509026]
[1763980934134,0.1,129.42,129.41,14.24803976]
[1763980934333,0.1,129.43,129.42,9.78882769]
[1763980934524,0.1,129.44,129.43,0.14216157]
[1763980934724,0.1,129.44,129.43,17.66803976]
[1763980935327,0.1,129.45,129.44,28.05194926]
[1763980935525,0.1,129.45,129.44,32.36899976]
[1763980936041,0.1,129.46,129.45,0.14216157]
[1763980936221,0.1,129.46,129.45,32.36899976]
[1763980936422,0.1,129.46,129.45,35.78899976]
[1763980937236,0.1,129.46,129.45,34.82969471]
[1763980937644,0.1,129.46,129.45,37.92531054]
[1763980938011,0.1,129.46,129.45,30.18826004]
[1763980938208,0.1,129.46,129.45,37.92531054]
[1763980939214,0.1,129.46,129.45,33.75042161]
[1763980939413,0.1,129.46,129.45,38.06747211]
[1763980942545,0.1,129.46,129.45,20.76365559]
[1763980944751,0.1,129.46,129.45,19.20079813]
[1763980946349,0.25362911,129.46,129.45,19.20079813]
[1763980950255,0.25175112,129.48,129.47,0.14216157]
[1763980950432,0.25831888,129.49,129.47,34.84575147]
[1763980950634,0.25831888,129.49,129.48,23.70195446]
[1763980951036,0.25831888,129.49,129.48,26.79685174]
[1763980951941,0.24253192,129.5,129.49,0.14216157]
[1763980952143,0.24253192,129.5,129.49,6.31635461]
[1763980952339,0.24253192,129.5,129.49,3.42]
[1763980952652,0.24253192,129.5,129.49,15.96302073]
[1763980953058,0.25784953,129.53,129.5,9.78882769]
[1763980953359,0.25784953,129.53,129.52,0.14216157]
[1763980953558,0.25784953,129.53,129.52,23.70195446]
[1763980954651,0.14021934,129.55,129.52,23.70195446]
[1763980954652,0.14021934,129.55,129.52,31.42272005]
[1763980954871,0.14021934,129.55,129.53,17.33312677]
[1763980955643,0.14021934,129.55,129.54,23.55979289]
[1763980956956,0.96443175,129.61,129.59,2.75419304]
[1763980957244,18.12096,129.62,129.59,3.42]
[1763980957539,0.96443175,129.61,129.59,3.42]
[1763980958474,3.71855039,129.62,129.59,3.42]
[1763980959246,0.96435735,129.62,129.59,6.17419304]
[1763980961355,0.96435735,129.62,129.59,3.42]
[1763980963767,2.75419304,129.61,129.59,3.42]
[1763980964062,0.96450617,129.6,129.59,3.42]
[1763980964640,0.96443175,129.61,129.59,3.42]
[1763980965468,0.96443175,129.61,129.58,2.75419304]
[1763980965671,19.08539175,129.61,129.58,2.75419304]
[1763980965860,19.08539175,129.61,129.56,3.42]
[1763980966182,18.12096,129.6,129.56,3.42]
[1763980966364,0.15900384,129.58,129.57,2.75419304]
[1763980967287,2.91319688,129.58,129.54,9.78882769]
[1763980967582,2.75419304,129.57,129.53,2.75419304]
[1763980967755,2.75419304,129.57,129.52,6.17419304]
[1763980967952,2.75419304,129.57,129.53,2.75419304]
[1763980968771,18.12096,129.55,129.52,6.17419304]
[1763980969482,2.75419304,129.54,129.49,2.75419304]
[1763980969687,2.75419304,129.53,129.49,2.75419304]
[1763980969983,2.75419304,129.52,129.47,2.75419304]
[1763980970173,20.87515304,129.51,129.47,2.75419304]
[1763980970559,20.87515304,129.51,129.46,6.17419304]
[1763980970760,2.75419304,129.5,129.46,6.17419304]
[1763980971378,2.75419304,129.5,129.46,3.42]
[1763980971580,20.87515304,129.51,129.46,6.17419304]
[1763980972416,2.75419304,129.5,129.46,6.17419304]
[1763980972769,2.75419304,129.5,129.46,3.42]
[1763980974893,20.87515304,129.51,129.47,2.75419304]
[1763980975293,18.12096,129.51,129.47,2.75419304]
[1763980975483,20.87515304,129.51,129.47,2.75419304]
[1763980976584,18.12096,129.52,129.48,2.75419304]
[1763980977100,20.87515304,129.52,129.48,2.75419304]
[1763980977686,2.75419304,129.53,129.48,2.75419304]
[1763980977889,18.12096,129.52,129.49,2.75419304]
[1763980978071,19.08606191,129.52,129.49,2.75419304]
[1763980978401,18.12096,129.52,129.49,2.75419304]
[1763980978582,3.71914595,129.54,129.49,2.75419304]
[1763980978783,18.12096,129.52,129.49,2.75419304]
[1763980979100,0.96510191,129.52,129.49,2.75419304]
[1763980980277,20.87515304,129.53,129.49,2.75419304]
[1763980980593,18.12096,129.51,129.48,2.75419304]
[1763980980798,2.75419304,129.5,129.42,9.78882769]
[1763980981001,2.75419304,129.48,129.44,2.75419304]
[1763980981374,2.75419304,129.46,129.42,6.17419304]
[1763980982076,20.87515304,129.45,129.4,2.75419304]
[1763980982382,20.87515304,129.45,129.4,6.17419304]
[1763980982683,20.87515304,129.45,129.41,2.75419304]
[1763980983492,20.87515304,129.45,129.4,6.17419304]
[1763980984280,20.87515304,129.45,129.38,9.78882769]
[1763980984281,2.75419304,129.44,129.39,2.75419304]
[1763980984784,18.12096,129.42,129.38,3.42]
[1763980985003,2.75419304,129.43,129.38,6.17419304]
[1763980985309,2.75419304,129.41,129.37,2.75419304]
[1763980985472,2.75419304,129.41,129.36,2.75419304]
[1763980985672,2.75419304,129.41,129.36,6.17419304]
[1763980986092,2.75419304,129.4,129.36,3.42]
[1763980986378,0.16880754,129.37,129.36,6.17419304]
[1763980987901,0.16880754,129.37,129.36,3.42]
[1763980988099,0.16880754,129.37,129.36,6.17419304]
[1763980988306,0.16880754,129.37,129.36,2.75419304]
[1763980989695,0.16880754,129.37,129.35,3.62]
[1763980991804,0.16880754,129.37,129.35,6.37419304]
[1763980991997,0.16880754,129.37,129.36,2.75419304]
[1763980993081,0.16880754,129.37,129.35,3.62]
[1763980993284,0.16880754,129.37,129.36,2.75419304]
[1763980996014,0.16880754,129.37,129.35,6.37419304]
[1763980996521,0.16880754,129.37,129.36,2.75419304]
[1763980999486,0.16880754,129.37,129.35,3.62]
[1763981000008,0.16880754,129.37,129.36,2.75419304]
[1763981000600,0.16880754,129.37,129.35,3.62]
[1763981000803,0.16880754,129.37,129.36,2.75419304]
[1763981002703,0.16880754,129.37,129.35,6.37419304]
[1763981002893,0.16880754,129.37,129.35,3.62]
[1763981003095,2.92300058,129.37,129.35,3.62]
[1763981005202,2.75419304,129.36,129.35,3.62]
[1763981005887,2.75419304,129.36,129.35,0.2]
[1763981006390,2.90797763,129.36,129.35,0.2]
[1763981006587,0.15378459,129.36,129.35,0.2]
[1763981006795,22.59014385,129.36,129.35,0.2]
[1763981008193,4.46918385,129.36,129.35,0.2]
[1763981009034,0.15378459,129.36,129.35,0.2]
[1763981009189,4.46918385,129.36,129.35,0.2]
[1763981013403,27.04770468,129.36,129.35,0.2]
[1763981013714,27.04770468,129.36,129.32,0.2]
[1763981013715,18.12096,129.33,129.32,0.2]
[1763981013898,22.43635926,129.33,129.32,0.2]
[1763981020116,4.31539926,129.33,129.32,0.2]
[1763981020506,5.28191901,129.33,129.32,0.2]
[1763981020814,4.31539926,129.34,129.32,0.2]
[1763981021829,5.28184428,129.34,129.32,0.2]
[1763981022496,4.31539926,129.35,129.32,0.2]
[1763981022697,22.43635926,129.35,129.32,0.2]
[1763981022896,4.31539926,129.34,129.32,0.2]
[1763981025600,4.31539926,129.33,129.32,0.2]
[1763981025806,22.43635926,129.33,129.32,0.2]
[1763981026395,22.59942973,129.33,129.32,0.2]
[1763981043812,4.47846973,129.33,129.32,0.2]
[1763981044329,0.16307047,129.33,129.32,0.2]
[1763981045530,4.47846973,129.33,129.32,0.2]
[1763981046447,4.63613433,129.33,129.32,0.2]
[1763981047934,4.47306386,129.33,129.32,0.2]
[1763981048434,4.47306386,129.33,129.32,62.3]
[1763981058938,0.1576646,129.33,129.32,62.3]
[1763981059138,4.47306386,129.33,129.32,62.3]
[1763981059567,0.1576646,129.33,129.32,62.3]
[1763981065566,0.1576646,129.33,129.32,65.72]
[1763981066445,0.30044666,129.33,129.32,65.72]
[1763981068074,0.14278206,129.33,129.32,65.72]
[1763981075480,0.14278206,129.33,129.32,62.3]
[1763981075656,2.90445326,129.33,129.32,0.2]
[1763981076083,21.02541326,129.33,129.32,0.2]
[1763981080568,18.26374206,129.33,129.32,0.2]
[1763981080866,21.02541326,129.33,129.32,0.2]
[1763981081550,21.99193301,129.33,129.32,0.2]
[1763981082255,2.90445326,129.33,129.32,0.2]
[1763981082456,0.14278206,129.33,129.32,62.3]
[1763981082866,2.90445326,129.33,129.32,62.3]
[1763981086384,3.04885096,129.33,129.32,62.3]
[1763981087961,2.9060689,129.33,129.32,62.3]
[1763981088669,0.1443977,129.33,129.32,62.3]
[1763981094103,2.9060689,129.33,129.32,62.3]
[1763981095269,0.1443977,129.33,129.32,62.3]
[1763981095872,2.9060689,129.33,129.32,62.3]
[1763981098793,2.9060689,129.33,129.32,0.2]
[1763981102283,21.0270289,129.33,129.32,0.2]
[1763981102609,18.12096,129.32,129.27,65.52]
[1763981102794,2.7616712,129.28,129.27,65.52]
[1763981106296,2.91986222,129.28,129.27,65.52]
[1763981108313,2.91986222,129.28,129.27,62.1]
[1763981112828,2.91986222,129.28,129.25,3.42]
[1763981113126,2.7616712,129.26,129.25,3.42]
[1763981115431,0.15819102,129.28,129.25,3.42]
[1763981115927,2.7616712,129.26,129.25,3.42]
[1763981116316,0.15819102,129.28,129.25,3.42]
[1763981116714,2.7616712,129.27,129.25,3.42]
[1763981117205,2.91986222,129.28,129.25,3.42]
[1763981117806,2.7616712,129.27,129.25,3.42]
[1763981118940,2.91986222,129.28,129.25,3.42]
[1763981120738,2.7616712,129.27,129.25,3.42]
[1763981121325,2.91986222,129.28,129.25,3.42]
[1763981122039,2.7616712,129.27,129.25,3.42]
[1763981123634,2.91986222,129.28,129.25,3.42]
[1763981124222,0.15819102,129.28,129.25,6.1816712]
[1763981124616,0.15819102,129.28,129.25,9.28256658]
[1763981125114,0.15819102,129.28,129.25,6.52089538]
[1763981126310,0.16019285,129.26,129.25,16.30972307]
[1763981131253,0.16019285,129.26,129.25,20.77061446]
[1763981131557,0.16019285,129.26,129.25,28.50755836]
[1763981132232,0.16019285,129.26,129.25,46.62851836]
[1763981135149,0.16787146,129.27,129.26,33.19098926]
[1763981135352,0.16787146,129.27,129.26,37.50971908]
[1763981136272,0.14041098,129.28,129.26,37.50971908]
[1763981136565,0.14041098,129.28,129.27,37.50971908]
[1763981136729,0.15165325,129.29,129.28,14.24971908]
[1763981136929,0.15165325,129.29,129.28,35.79067908]
[1763981137124,0.15165325,129.29,129.28,43.52582759]
[1763981137427,0.15165325,129.29,129.28,38.8901328]
[1763981138049,0.15165325,129.29,129.28,46.62528131]
[1763981140259,0.15165325,129.29,129.28,38.8901328]
[1763981140451,0.15165325,129.29,129.28,34.57140298]
[1763981142036,0.15165325,129.29,129.28,38.8901328]
[1763981143348,0.15165325,129.29,129.28,46.62528131]
[1763981146370,0.31101751,129.29,129.28,51.76432131]
[1763981146550,0.31101751,129.29,129.28,56.08305113]
[1763981146947,0.31101751,129.29,129.28,51.76432131]
[1763981147548,0.31101751,129.29,129.28,56.08305113]
[1763981148066,0.15936426,129.29,129.28,56.08305113]
[1763981148858,0.15936426,129.29,129.28,51.76432131]
[1763981149555,0.15022255,129.3,129.28,75.42092241]
[1763981149758,0.15022255,129.3,129.29,41.8284489]
[1763981151056,0.15022255,129.3,129.29,49.56299913]
[1763981151563,0.15022255,129.3,129.29,52.66197259]
[1763981154162,0.15022255,129.3,129.29,36.28996272]
[1763981154372,0.15022255,129.3,129.29,3.09897346]
[1763981154684,0.15022255,129.3,129.29,6.51897346]
[1763981157577,0.15022255,129.3,129.29,6.41897346]
[1763981164464,0.15022255,129.3,129.29,20.66869254]
[1763981164987,0.15022255,129.3,129.29,16.34996272]
[1763981165183,0.15022255,129.3,129.29,16.20780115]
[1763981166480,0.31085395,129.3,129.29,16.20780115]
[1763981167973,0.1606314,129.3,129.29,20.52653097]
[1763981168969,0.1606314,129.3,129.29,28.40324277]
[1763981169370,0.1606314,129.3,129.29,46.52420277]
[1763981172270,0.1606314,129.3,129.29,51.66324277]
[1763981174382,0.1606314,129.3,129.29,55.98197259]
[1763981174998,0.14812997,129.31,129.3,51.31194926]
[1763981175210,0.16583953,129.33,129.32,71.58307738]
[1763981175505,0.16583953,129.33,129.32,79.3218072]
[1763981175682,0.16583953,129.33,129.32,82.42054059]
[1763981176003,0.16583953,129.33,129.32,207.82270216]
[1763981176199,0.16583953,129.33,129.32,184.56270216]
[1763981177173,0.16583953,129.33,129.32,192.29545811]
[1763981185000,0.1422723,129.37,129.32,192.29545811]
[1763981185001,0.1422723,129.37,129.36,75.27410945]
[1763981185193,0.1422723,129.37,129.36,180.69410945]
[1763981185604,0.1422723,129.37,129.36,183.7923628]
[1763981186615,0.30788945,129.37,129.36,183.7923628]
[1763981188008,0.16561715,129.37,129.36,191.66488924]
[1763981188204,0.16561715,129.37,129.36,195.98361906]
[1763981188413,0.16561715,129.37,129.36,183.93452437]
[1763981188715,0.16561715,129.37,129.36,183.7923628]
[1763981188905,0.16561715,129.37,129.36,188.25325419]
[1763981189092,0.16561715,129.37,129.36,195.98361906]
[1763981189292,0.16561715,129.37,129.36,183.93452437]
[1763981190711,0.16561715,129.37,129.36,179.61579455]
[1763981190906,0.16561715,129.37,129.36,183.93452437]
[1763981192702,0.16561715,129.37,129.36,182.37416725]
[1763981194023,0.15195203,129.39,129.38,60.85574986]
[1763981194201,2.91032473,129.39,129.38,64.27574986]
[1763981195106,0.15195203,129.39,129.38,64.27574986]
[1763981195309,2.91032473,129.39,129.38,64.27574986]
[1763981199914,2.91032473,129.39,129.38,3.42]
[1763981201914,2.91032473,129.39,129.38,3.42]
[1763981206125,2.91032473,129.39,129.36,3.42]
[1763981206318,2.7583727,129.37,129.36,3.42]
[1763981211719,2.7583727,129.37,129.36,64.27574986]
[1763981211921,2.7583727,129.38,129.36,64.27574986]
[1763981212122,2.7583727,129.37,129.36,64.27574986]
[1763981212820,0.15275135,129.39,129.36,64.27574986]
[1763981213019,2.7583727,129.37,129.36,64.27574986]
[1763981213624,2.7583727,129.38,129.36,64.27574986]
[1763981213815,2.7583727,129.38,129.36,67.37448325]
[1763981214731,2.7583727,129.38,129.36,64.27574986]
[1763981215439,2.91112405,129.39,129.36,64.27574986]
[1763981215932,2.7583727,129.38,129.36,64.27574986]
[1763981216133,2.7583727,129.37,129.36,64.27574986]
[1763981217513,0.15275135,129.39,129.36,64.27574986]
[1763981217746,2.7583727,129.38,129.36,3.42]
[1763981220223,2.7583727,129.37,129.33,63.95448325]
[1763981220519,19.23978291,129.39,129.28,64.89959269]
[1763981220520,2.7583727,129.34,129.28,64.89959269]
[1763981220719,2.7583727,129.33,129.29,22.65978291]
[1763981220939,2.7583727,129.33,129.29,6.1783727]
[1763981221622,2.7583727,129.33,129.29,3.42]
[1763981221818,2.7583727,129.31,129.29,3.42]
[1763981222142,18.12096,129.33,129.29,3.42]
[1763981222324,2.7583727,129.31,129.29,3.42]
[1763981222526,2.7583727,129.32,129.29,3.42]
[1763981223343,18.12096,129.36,129.29,6.1783727]
[1763981223538,2.7583727,129.33,129.29,6.1783727]
[1763981225151,2.7583727,129.33,129.29,3.42]
[1763981226447,0.16348174,129.3,129.29,13.20882769]
[1763981226649,0.16348174,129.3,129.29,176.06457755]
[1763981228155,0.16348174,129.3,129.29,176.06457755]
[1763981230429,0.16348174,129.3,129.29,166.27574986]
[1763981231427,2.92185444,129.3,129.29,166.27574986]
[1763981231629,2.92185444,129.3,129.29,3.42]
[1763981231961,13.95534524,129.3,129.28,4.04384283]
[1763981232163,2.7583727,129.29,129.28,4.04384283]
[1763981232855,0.16348174,129.3,129.28,4.04384283]
[1763981233053,2.7583727,129.29,129.28,7.46384283]
[1763981233253,2.7583727,129.29,129.28,4.04384283]
[1763981236130,2.7583727,129.29,129.24,3.42]
[1763981236333,2.7583727,129.25,129.23,0.2]
[1763981236660,2.7583727,129.24,129.23,0.2]
[1763981236954,13.7918635,129.24,129.23,0.2]
[1763981242344,2.7583727,129.24,129.23,0.2]
[1763981243058,18.12096,129.26,129.23,0.2]
[1763981243257,2.7583727,129.24,129.23,0.2]
[1763981244467,13.7918635,129.24,129.23,0.2]
[1763981246552,14.91854222,129.24,129.23,0.2]
[1763981247780,13.95134941,129.24,129.23,0.2]
[1763981251250,0.15948591,129.24,129.23,0.2]
[1763981251448,2.91785861,129.24,129.23,0.2]
[1763981254669,4.48110502,129.24,129.23,0.2]
[1763981254864,0.15948591,129.24,129.23,0.2]
[1763981255300,4.48110502,129.24,129.23,0.2]
[1763981256156,4.48110502,129.24,129.23,61.05574986]
[1763981260184,0.15948591,129.24,129.23,61.05574986]
[1763981260688,4.48110502,129.24,129.23,61.05574986]
[1763981261769,0.15948591,129.24,129.23,61.05574986]
[1763981261962,4.48110502,129.24,129.23,61.05574986]
[1763981265592,8.80272413,129.24,129.23,61.05574986]
[1763981265766,4.48110502,129.24,129.23,61.05574986]
[1763981266463,4.62069859,129.24,129.23,61.05574986]
[1763981268070,4.46121268,129.24,129.23,61.05574986]
[1763981268273,4.46121268,129.24,129.23,0.2]
[1763981269672,4.46121268,129.24,129.23,3.62]
[1763981274897,4.46121268,129.24,129.23,25.61074966]
[1763981274898,0.13959357,129.24,129.23,25.61074966]
[1763981275598,0.13959357,129.24,129.23,17.87260837]
[1763981279894,0.13959357,129.24,129.23,78.72835823]
[1763981280282,0.16324012,129.25,129.24,70.64714555]
[1763981280492,0.16324012,129.25,129.24,200.23876466]
[1763981280693,0.14199533,129.26,129.24,200.23876466]
[1763981280694,0.14199533,129.26,129.25,51.32194926]
[1763981280899,0.14199533,129.26,129.25,55.64356837]
[1763981281109,0.14199533,129.26,129.25,28.05194926]
[1763981281300,0.14199533,129.26,129.25,35.79356837]
[1763981281798,0.14199533,129.26,129.25,9.78882769]
[1763981281999,0.14199533,129.26,129.25,13.20882769]
[1763981282194,0.14199533,129.26,129.25,13.35098926]
[1763981282810,0.14199533,129.26,129.25,17.67260837]
[1763981285207,0.14199533,129.26,129.25,13.20882769]
[1763981285906,0.14199533,129.26,129.25,73.92498398]
[1763981286290,0.14199533,129.26,129.25,78.38876466]
[1763981286495,0.30864087,129.28,129.27,70.02994909]
[1763981286722,0.30864087,129.28,129.27,77.7715682]
[1763981287911,0.14223081,129.28,129.27,77.7715682]
[1763981288313,0.14223081,129.28,129.27,73.44994909]
[1763981288522,0.14223081,129.28,129.27,69.88778752]
[1763981288807,0.14223081,129.28,129.27,73.30778752]
[1763981289624,0.14223081,129.28,129.27,77.62940663]
[1763981290406,0.14223081,129.28,129.27,73.30778752]
[1763981292592,0.14223081,129.28,129.27,77.62940663]
[1763981293126,0.14223081,129.28,129.27,73.30778752]
[1763981294414,0.14223081,129.28,129.27,77.7715682]
[1763981295213,0.14223081,129.28,129.27,73.44994909]
[1763981296122,0.14223081,129.28,129.27,77.7715682]
[1763981296705,0.14223081,129.28,129.27,103.62827508]
[1763981297228,0.14223081,129.28,129.27,98.99246232]
[1763981297426,0.14223081,129.28,129.27,106.7282092]
[1763981297827,0.15635809,129.3,129.29,69.58287546]
[1763981298018,0.15635809,129.3,129.29,73.00287546]
[1763981298701,0.15635809,129.3,129.29,77.32449457]
[1763981299326,0.15635809,129.3,129.29,77.46665614]
[1763981299636,0.15635809,129.3,129.29,197.58761614]
[1763981299929,0.15635809,129.3,129.29,205.32216637]
[1763981301801,0.15635809,129.3,129.29,208.42162009]
[1763981303829,0.14859465,129.31,129.3,59.77985125]
[1763981304031,0.14859465,129.31,129.3,64.10147036]
[1763981304229,0.14859465,129.31,129.3,59.77985125]
[1763981304532,0.14859465,129.31,129.3,64.10147036]
[1763981305529,0.14859465,129.31,129.3,59.77985125]
[1763981305729,0.14859465,129.31,129.3,69.42651737]
[1763981306437,0.30142922,129.31,129.3,73.89029805]
[1763981306731,0.30142922,129.31,129.3,179.30263098]
[1763981307035,0.30142922,129.31,129.3,183.62425009]
[1763981307238,0.30142922,129.31,129.3,186.72322355]
[1763981307915,0.15283457,129.31,129.3,186.72322355]
[1763981308429,0.15283457,129.31,129.3,214.31484266]
[1763981312620,0.144287,129.32,129.31,92.68584437]
[1763981312942,0.144287,129.32,129.31,100.42746348]
[1763981315845,0.144287,129.32,129.31,108.16081743]
[1763981316748,0.144287,129.32,129.31,106.59880123]
[1763981316934,0.144287,129.32,129.31,109.69729458]
[1763981317852,0.144287,129.32,129.31,75.79217615]
[1763981318047,0.144287,129.32,129.31,62.90485511]
[1763981318249,0.144287,129.32,129.31,3.42]
[1763981319126,2.90388991,129.32,129.31,3.42]
[1763981319325,0.144287,129.32,129.31,3.42]
[1763981320618,0.144287,129.32,129.31,13.20882769]
[1763981321628,0.144287,129.32,129.31,72.6936828]
[1763981322636,0.144287,129.32,129.31,88.5132828]
[1763981323459,0.144287,129.32,129.31,88.65544437]
[1763981325051,0.144287,129.32,129.31,91.41504728]
[1763981326031,0.16469091,129.33,129.31,91.41504728]
[1763981326032,0.16469091,129.33,129.32,59.48272968]
[1763981326235,0.16469091,129.33,129.32,79.76391623]
[1763981326538,0.32787422,129.33,129.32,79.76391623]
[1763981328055,0.16318331,129.33,129.32,72.03116028]
[1763981328366,0.16318331,129.33,129.32,79.76391623]